{"text_format":"3","workbook":"xlsx","n_sheets":2,"sheets":["Inicio","Factura de servicio"],"not_rendered":{"images":1,"defined_names":1},"read":"whole","date_system":"1900"}

{"sheet":"Inicio","index":0,"n_rows":8,"n_cols":2,"rows_kept":8}
[null,"ACERCA DE ESTA PLANTILLA"]
[null,"Use esta plantilla para crear una Factura de venta."]
[null,"Rellene la información básica, como el nombre de la empresa, y los datos de a quién se ha facturado y enviado."]
[null,"Escriba las tablas los detalles de la factura."]
[null,"El total se calcula automáticamente."]
[null,"Nota: "]
[null,"Se facilitan instrucciones adicionales en la columna A de la hoja de cálculo FACTURA DE SERVICIO. Este texto se ha ocultado a propósito. Para eliminar el texto, seleccione la columna A y, a continuación, ELIMINAR. Para mostrar el texto, seleccione la columna A y, a continuación, cambie el color de fuente."]
[null,"Para obtener más información sobre las tablas, presione las teclas MAYÚS y F10 dentro de una tabla, seleccione la opción TABLA y, después, TEXTO ALTERNATIVO."]

{"sheet":"Factura de servicio","index":1,"n_rows":39,"n_cols":8,"rows_kept":39,"merged":[[0,1,0,3],[0,4,0,7],[1,1,1,6],[2,1,2,3],[3,1,3,3],[4,1,4,2],[4,5,4,6],[5,1,5,2],[5,5,5,6],[6,1,6,2],[6,3,6,4],[6,5,6,6],[7,1,7,2],[7,3,7,4],[8,2,8,3],[8,5,8,6],[9,2,9,3],[9,5,9,6],[10,2,10,3],[10,5,10,6],[11,2,11,3],[11,5,11,6],[12,2,12,3],[12,5,12,6],[37,1,37,4],[37,5,37,7],[38,1,38,7]]}
["Cree una factura de ventas en esta hoja de cálculo. Añada el logotipo de la compañía en la celda de la derecha y el título de esta hoja de cálculo en la celda E1. Encontrará instrucciones útiles sobre cómo usar esta hoja de cálculo en las celdas de esta columna. La instrucción siguiente se encuentra en la celda A3.","El marcador de posición del logotipo se encuentra en esta celda.",null,null,"FACTURA"]
[]
["Escriba el nombre de la empresa en la celda de la derecha.","El nombre de su empresa"]
["Escriba el eslogan de la empresa en la celda de la derecha.","El lema de su empresa"]
["Escriba la dirección de la empresa en la celda a la derecha y el número de factura en la celda F5.","Dirección",null,null,"N.º DE FACTURA","Núm."]
["Escriba la ciudad, la provincia y el código postal en la celda de la derecha y la fecha de factura en la celda F6.","Ciudad y código postal",null,null,"FECHA",{"$f":"TODAY()","v":"2019-05-10"}]
["Escriba los números de teléfono y fax, y ID de cliente, en la celda F7.","Teléfono Fax",null,"ID. DEL CLIENTE",null,"ID"]
["Escriba la dirección de correo electrónico en la celda de la derecha.","Correo electrónico"]
["Introduzca la dirección de facturación en las celdas de C9 a C13 y la dirección de envío en celdas de F9 a F13. La instrucción siguiente se encuentra en la celda A14.","PARA","Nombre",null,"ENVIAR A","Nombre"]
[null,null,"Nombre de la empresa",null,null,"Nombre de la empresa"]
[null,null,"Dirección",null,null,"Dirección"]
[null,null,"Ciudad y código postal",null,null,"Ciudad y código postal"]
[null,null,"Teléfono",null,null,"Teléfono"]
["Escriba la información en la tabla Detalles que comienza en la celda de la derecha. La instrucción siguiente está en la celda A17.","VENDEDOR","TRABAJO","MÉTODO DE ENVÍO","CONDICIONES DE ENVÍO","FECHA DE ENTREGA","CONDICIONES DE PAGO","FECHA DE VENCIMIENTO"]
[{"$nulls":6},"Pago contra entrega"]
[]
["Escriba la información en la tabla Factura que comienza en la celda de la derecha. El total y el subtotal se calculan automáticamente al final. La instrucción siguiente se encuentra en la celda A38.","CANT.","N.º DE ARTÍCULO","DESCRIPCIÓN","Columna personalizada","PRECIO POR UNIDAD","DESCUENTO","TOTAL DE LA LÍNEA"]
[{"$nulls":7},{"$f":"IF(SUM(B18)>0,SUM(B18*F18-G18),\"\")","v":""}]
[{"$nulls":7},""]
[{"$nulls":7},""]
[{"$nulls":7},""]
[{"$nulls":7},""]
[{"$nulls":7},""]
[{"$nulls":7},""]
[{"$nulls":7},""]
[{"$nulls":7},""]
[{"$nulls":7},""]
[{"$nulls":7},""]
[{"$nulls":7},""]
[{"$nulls":7},""]
[{"$nulls":7},""]
[{"$nulls":7},""]
[{"$nulls":5},"DESCUENTO TOTAL",{"$f":"IF(SUM(G18:G32)>0,SUM(G18:G32),\"\")","v":""}]
[{"$nulls":6},"SUBTOTAL",{"$f":"IF(SUM(H18:H32)>0,SUM(H18:H32),\"\")","v":""}]
[{"$nulls":6},"IMPUESTO SOBRE LAS VENTAS"]
[{"$nulls":6},"TOTAL",{"$f":"IF(SUM(H34)>0,SUM((H34*H35)+H34),\"\")","v":""}]
[]
["El nombre de la empresa se actualiza automáticamente en la celda F38.","Todos los cheques se extenderán a nombre de",{"$nulls":3},{"$f":"B3","v":"El nombre de su empresa"}]
["El mensaje de agradecimiento está en la celda de la derecha.","             GRACIAS POR SU CONFIANZA"]